bitfinex-derivatives/quotes_SOLF0:USTF0_20260118
["timestamp","ask_amount","ask_price","bid_price","bid_amount"]
[1768780320324,69.16628354,138.77,138.64,101.0159]
[1768780320519,69.16628354,138.77,138.63,101.0202]
[1768780320520,64.40338901,138.75,138.63,65.13241633]
[1768780320727,64.40338901,138.74,138.63,101.0212]
[1768780321026,64.40338901,138.74,138.64,101.0141]
[1768780321323,64.40338901,138.78,138.67,166.12471633]
[1768780321720,64.40338901,138.76,138.64,166.14651633]
[1768780321925,64.40338901,138.76,138.64,65.13241633]
[1768780322321,70.89198901,138.76,138.64,71.62621633]
[1768780322818,6.489,138.75,138.64,71.62621633]
[1768780323024,70.89238901,138.75,138.64,71.62621633]
[1768780323224,70.89238901,138.75,138.64,65.13241633]
[1768780323225,64.40338901,138.73,138.64,65.13241633]
[1768780323822,165.35428901,138.73,138.6,65.13241633]
[1768780324028,64.40338901,138.72,138.6,71.62801633]
[1768780324230,64.40338901,138.72,138.6,166.17701633]
[1768780324424,64.40338901,138.69,138.57,6.4971]
[1768780324630,64.40338901,138.67,138.57,6.4971]
[1768780325133,64.40338901,138.67,138.55,101.0817]
[1768780325328,64.40338901,138.67,138.56,65.13241633]
[1768780326136,64.40338901,138.66,138.53,166.22701633]
[1768780326832,64.40338901,138.66,138.54,65.13241633]
[1768780327232,64.40338901,138.65,138.54,65.13241633]
[1768780327936,64.40338901,138.65,138.56,6.4974]
[1768780328234,64.40338901,138.65,138.54,65.13241633]
[1768780328734,70.89708901,138.65,138.55,6.4978]
[1768780329233,275.68289453,138.68,138.56,166.20211633]
[1768780329533,64.40338901,138.73,138.62,101.0299]
[1768780329735,70.89318901,138.73,138.63,6.4941]
[1768780329930,64.40338901,138.72,138.62,65.13241633]
[1768780330129,105.71699453,138.73,138.59,105.81219453]
[1768780330130,64.40338901,138.7,138.59,4.76289453]
[1768780330433,64.40338901,138.67,138.52,435.55041633]
[1768780330641,64.40338901,138.65,138.54,166.21861633]
[1768780331134,64.40338901,138.65,138.54,172.71701633]
[1768780331333,64.40338901,138.65,138.55,101.0816]
[1768780331533,282.21609453,138.66,138.56,166.20641633]
[1768780331534,270.96,138.66,138.56,166.20641633]
[1768780332125,64.40338901,138.65,138.54,105.84909453]
[1768780332330,270.96,138.66,138.57,65.13241633]
[1768780332641,340.12628354,138.66,138.54,101.0862]
[1768780332935,64.40338901,138.65,138.54,6.4984]
[1768780333135,64.40338901,138.65,138.54,101.0882]
[1768780333329,64.40338901,138.65,138.55,65.13241633]
[1768780334438,75.65788354,138.69,138.58,65.13241633]
[1768780334732,75.65788354,138.69,138.56,101.0729]
[1768780334733,69.16628354,138.69,138.56,65.13241633]
[1768780334928,64.40338901,138.67,138.56,71.62961633]
[1768780335535,64.40338901,138.65,138.54,6.4984]
[1768780335739,64.40338901,138.64,138.54,6.4984]
[1768780335940,64.40338901,138.64,138.53,65.13241633]
[1768780336736,4.76289453,138.63,138.53,65.13241633]
[1768780337040,64.40338901,138.62,138.53,65.13241633]
[1768780337637,64.40338901,138.62,138.5,71.63261633]
[1768780337844,64.40338901,138.61,138.5,71.63261633]
[1768780338035,64.40338901,138.59,138.48,65.13241633]
[1768780338436,64.40338901,138.59,138.49,6.5006]
[1768780338741,64.40338901,138.59,138.52,0.04851542]
[1768780339139,64.40338901,138.62,138.52,65.18093175]
[1768780339641,64.40338901,138.62,138.52,65.13241633]
[1768780340042,64.40338901,138.62,138.56,0.05277887]
[1768780341239,64.44982272,138.6,138.49,65.13241633]
[1768780341440,64.44982272,138.6,138.49,166.25521633]
[1768780341745,64.40338901,138.6,138.49,166.25521633]
[1768780342334,70.89938901,138.6,138.49,65.13241633]
[1768780342539,63.28104711,138.58,138.49,65.13241633]
[1768780343244,68.04394164,138.57,138.46,62.95109572]
[1768780343941,6.4979,138.56,138.46,62.95109572]
[1768780344443,0.04857007,138.53,138.5,0.05263785]
[1768780345040,0.04857007,138.53,138.46,69.45309572]
[1768780345041,63.28104711,138.51,138.39,62.95109572]
[1768780345238,63.28104711,138.51,138.39,164.14679572]
[1768780345440,63.28104711,138.51,138.4,164.14189572]
[1768780345640,63.28104711,138.51,138.41,101.1808]
[1768780345847,63.28104711,138.51,138.41,164.13189572]
[1768780346145,271.06,138.52,138.44,101.1576]
[1768780346444,68.05054182,138.55,138.42,101.1763]
[1768780346643,68.05054182,138.55,138.42,164.12739572]
[1768780346845,63.28104711,138.55,138.42,164.12739572]
[1768780347640,63.28104711,138.55,138.44,164.11029572]
[1768780348040,63.28104711,138.55,138.45,164.10519572]
[1768780348242,271.08,138.56,138.46,164.09409572]
[1768780349438,271.08,138.56,138.48,164.07979572]
[1768780349834,271.08,138.56,138.48,62.95109572]
[1768780350742,271.08,138.56,138.48,69.45219572]
[1768780354638,271.08,138.56,138.49,6.5006]
[1768780355946,271.08,138.56,138.48,62.95109572]
[1768780356749,271.08,138.56,138.49,6.5006]
[1768780357152,271.08,138.56,138.5,62.95109572]
[1768780357346,334.36104711,138.56,138.46,164.09409572]
[1768780357958,334.36104711,138.56,138.49,6.5007]
[1768780360156,334.36104711,138.56,138.47,6.5016]
[1768780360449,334.36104711,138.56,138.46,164.09409572]
[1768780360652,101.0354,138.62,138.48,66.1832853]
[1768780360653,62.49611338,138.62,138.48,66.1832853]
[1768780360852,68.99111338,138.62,138.53,6.4986]
[1768780361051,62.49611338,138.61,138.53,6.4986]
[1768780361255,62.49611338,138.61,138.54,6.4984]
[1768780361448,62.49611338,138.61,138.54,101.0885]
[1768780361650,271.18,138.62,138.55,101.0802]
[1768780362051,62.49611338,138.67,138.57,101.0636]
[1768780362249,62.49611338,138.67,138.59,101.051]
[1768780362454,271.2,138.69,138.6,101.0443]
[1768780362651,271.2,138.69,138.62,6.4945]
[1768780362961,271.2,138.69,138.62,101.0307]
[1768780363156,62.49611338,138.7,138.64,6.4934]
[1768780363356,333.67611338,138.73,138.63,101.023]
[1768780363655,333.67611338,138.73,138.61,6.4951]
[1768780363656,62.49611338,138.72,138.61,6.4951]
[1768780363863,62.49611338,138.69,138.61,6.4951]
[1768780364056,62.49611338,138.69,138.59,101.0488]
[1768780364751,62.49611338,138.69,138.59,6.496]
[1768780364947,62.49611338,138.69,138.55,120.04227925]
[1768780365152,62.49611338,138.67,138.57,101.0649]
[1768780365360,0.05078428,138.65,138.57,101.0649]
[1768780365561,0.05078428,138.65,138.63,0.05202442]
[1768780365948,0.05078428,138.65,138.59,6.4959]
[1768780366151,62.54689766,138.65,138.54,4.76949471]
[1768780366358,62.54689766,138.65,138.55,101.0818]
[1768780366661,62.49611338,138.65,138.56,6.4973]
[1768780366953,62.49611338,138.65,138.57,6.4967]
[1768780367756,0.04948688,138.62,138.57,6.4967]
[1768780368555,333.65611338,138.68,138.58,6.4964]
[1768780368760,333.65611338,138.68,138.58,101.0574]
[1768780369059,62.49611338,138.67,138.57,6.497]
[1768780369259,62.49611338,138.67,138.53,389.55547925]
[1768780369260,4.76949471,138.66,138.53,389.55547925]
[1768780369455,62.49611338,138.65,138.53,389.55547925]
[1768780369661,62.49611338,138.65,138.56,18.96307925]
[1768780369865,62.49611338,138.65,138.55,6.4979]
[1768780370649,68.98991338,138.65,138.53,6.4988]
[1768780370948,62.49611338,138.65,138.53,6.4988]
[1768780371362,0.05502972,138.6,138.58,0.04672262]
[1768780371556,0.05502972,138.6,138.53,6.4988]
[1768780371957,67.26560809,138.63,138.53,6.4988]
[1768780372264,62.49611338,138.63,138.54,6.4982]
[1768780372964,0.05373472,138.6,138.54,6.4982]
[1768780373351,61.90317789,138.66,138.56,18.93061303]
[1768780373557,61.90317789,138.66,138.57,101.0661]
[1768780374360,61.90317789,138.66,138.56,18.93061303]
[1768780375062,61.90317789,138.66,138.56,6.4974]
[1768780376362,68.39637789,138.66,138.56,6.4974]
[1768780377268,61.90317789,138.64,138.54,6.4983]
[1768780377954,61.90317789,138.62,138.52,6.4993]
[1768780378561,61.90317789,138.62,138.53,6.4988]
[1768780378763,271.1,138.63,138.54,120.01951303]
[1768780379157,271.1,138.63,138.56,6.4974]
[1768780379559,61.90317789,138.65,138.57,6.4969]
[1768780379766,61.90317789,138.65,138.56,119.99981303]
[1768780379963,61.90317789,138.65,138.56,18.93061303]
[1768780380562,61.90317789,138.65,138.56,25.42791303]
[1768780380864,61.90317789,138.65,138.56,6.4973]
[1768780381061,61.90317789,138.65,138.53,18.93061303]
[1768780381460,61.90317789,138.62,138.54,6.4983]
[1768780381672,66.6726726,138.62,138.5,120.04771303]
[1768780381868,61.90317789,138.61,138.5,120.04771303]
[1768780382653,61.90317789,138.61,138.53,6.4988]
[1768780382855,119.0,138.63,138.54,18.93061303]
[1768780383555,119.0,138.63,138.56,6.4973]
[1768780383969,61.90317789,138.62,138.5,120.04771303]
[1768780384172,61.90317789,138.6,138.49,101.1224]
[1768780384572,61.90317789,138.6,138.5,101.1165]
[1768780384865,61.90317789,138.6,138.52,6.4993]
[1768780385370,61.90317789,138.6,138.51,120.03771303]
[1768780385568,61.90317789,138.6,138.52,101.1028]
[1768780385878,61.90317789,138.63,138.53,101.0959]
[1768780386059,61.90317789,138.63,138.55,6.4979]
[1768780386866,61.90317789,138.63,138.55,101.081]
[1768780387266,337.7726726,138.67,138.57,101.0641]
[1768780387568,337.7726726,138.67,138.56,101.0741]
[1768780387772,67.12058689,138.66,138.55,18.93061303]
[1768780387961,61.90317789,138.66,138.55,18.93061303]
[1768780388457,61.90317789,138.66,138.57,6.497]
[1768780388458,6.4937,138.65,138.57,6.497]
[1768780389268,61.90317789,138.65,138.57,6.497]
[1768780389970,68.39667789,138.65,138.55,6.4978]
[1768780390163,68.39667789,138.65,138.53,101.0898]
[1768780390370,68.39667789,138.65,138.53,120.02041303]
[1768780391575,68.39717789,138.64,138.56,6.4974]
[1768780393474,68.39717789,138.64,138.54,6.4982]
[1768780393768,376.86719471,138.67,138.51,101.1099]
[1768780393769,61.90317789,138.61,138.51,101.1099]
[1768780394876,61.90317789,138.61,138.53,6.4988]
[1768780395079,61.90317789,138.61,138.52,120.03351303]
[1768780395570,61.90317789,138.64,138.55,6.4978]
[1768780395772,5.22796428,138.63,138.54,120.01911303]
[1768780395974,61.90317789,138.64,138.55,18.93061303]
[1768780396174,5.22776023,138.63,138.55,18.93061303]
[1768780396371,61.90317789,138.64,138.55,18.93061303]
[1768780396567,5.22873339,138.63,138.55,18.93061303]
[1768780396772,333.00317789,138.67,138.58,6.4965]
[1768780396972,5.22958716,138.66,138.58,6.4965]
[1768780397174,5.22958716,138.65,138.57,119.99651303]
[1768780397372,5.22958716,138.64,138.57,119.99651303]
[1768780397572,333.00317789,138.67,138.57,119.99651303]
[1768780397770,5.23085804,138.66,138.57,119.99651303]
[1768780397971,5.23085804,138.65,138.57,18.93061303]
[1768780398177,333.00317789,138.67,138.57,18.93061303]
[1768780398480,5.23119824,138.66,138.59,6.496]
[1768780398676,74.79748353,138.7,138.59,18.93061303]
[1768780398977,5.23363122,138.69,138.61,6.495]
[1768780399172,5.23363122,138.68,138.61,6.495]
[1768780399479,5.23363122,138.68,138.56,101.0741]
[1768780399480,67.13680911,138.67,138.55,18.93061303]
[1768780399674,61.90317789,138.63,138.52,18.93061303]
[1768780399881,5.23363122,138.62,138.52,18.93061303]
[1768780400084,67.13311519,138.61,138.51,6.4997]
[1768780400381,66.6726726,138.59,138.46,120.07641303]
[1768780400586,61.90317789,138.58,138.47,101.1396]
[1768780401083,61.90317789,138.58,138.46,120.07641303]
[1768780401971,61.90317789,138.58,138.49,6.5006]
[1768780402672,271.1,138.6,138.49,120.06482026]
[1768780402976,333.69317177,138.6,138.49,120.06482026]
[1768780403376,5.22739586,138.59,138.49,120.06482026]
[1768780403579,333.69317177,138.6,138.49,120.06482026]
[1768780403882,340.18917177,138.6,138.51,6.4998]
[1768780404084,5.22701662,138.59,138.51,6.4998]
[1768780404278,5.22701662,138.58,138.51,6.4998]
[1768780404575,340.18917177,138.6,138.51,6.4998]
[1768780404780,340.18917177,138.6,138.49,120.06482026]
[1768780404781,69.08957177,138.59,138.49,25.44272026]
[1768780405177,69.08957177,138.59,138.49,18.94212026]
[1768780405984,62.59317177,138.58,138.46,120.08792026]
[1768780406880,372.1493,138.6,138.48,6.5011]
[1768780406881,69.09057177,138.57,138.48,6.5011]
[1768780407478,105.82276806,138.59,138.46,120.08622026]
[1768780407479,62.59317177,138.55,138.46,6.502]
[1768780408081,69.09147177,138.55,138.46,6.502]
[1768780408981,62.59317177,138.55,138.46,6.502]
[1768780409584,62.59317177,138.55,138.47,6.5015]
[1768780410172,62.59317177,138.55,138.45,6.5025]
[1768780410483,62.59317177,138.53,138.41,18.94212026]
[1768780410785,62.59317177,138.51,138.41,18.94212026]
[1768780411180,62.59317177,138.51,138.43,101.1684]
[1768780411976,62.59317177,138.51,138.42,120.11512026]
[1768780412178,62.59317177,138.51,138.43,101.1683]
[1768780412686,62.59317177,138.51,138.45,6.5025]
[1768780412983,62.59317177,138.48,138.36,101.2173]
[1768780413286,62.59317177,138.48,138.36,101.2199]
[1768780413287,62.59317177,138.45,138.36,101.2199]
[1768780413585,62.59317177,138.45,138.37,101.2124]
[1768780414085,62.59317177,138.45,138.38,6.5058]
[1768780414281,50.63097177,138.45,138.38,101.2008]
[1768780414985,50.63097177,138.45,138.38,6.5059]
[1768780415286,50.63097177,138.45,138.38,101.2057]
[1768780415474,50.63097177,138.45,138.39,6.5052]
[1768780415795,50.63097177,138.45,138.36,120.16202026]
[1768780415990,50.63097177,138.45,138.36,101.2199]
[1768780416278,50.63097177,138.45,138.38,6.5058]
[1768780416480,50.63097177,138.45,138.35,101.223]
[1768780417087,50.63097177,138.45,138.37,6.5062]
[1768780417287,50.63097177,138.45,138.34,101.2294]
[1768780417487,55.39733983,138.45,138.34,101.2294]
[1768780417695,50.63097177,138.45,138.36,6.5067]
[1768780418581,50.63097177,138.45,138.36,101.2192]
[1768780419282,50.63097177,138.45,138.38,6.5058]
[1768780419579,50.63097177,138.45,138.35,101.2265]
[1768780420878,50.63097177,138.45,138.36,6.5069]
[1768780421082,0.04866234,138.41,138.36,6.5069]
[1768780421282,0.04866234,138.41,138.39,0.05355483]
[1768780421482,0.04866234,138.41,138.36,6.5069]
[1768780421683,0.04866234,138.41,138.37,6.5063]
[1768780421888,0.04866234,138.41,138.36,101.2167]
[1768780422188,0.04866234,138.41,138.38,6.5058]
[1768780422381,332.46261521,138.48,138.38,132.23920295]
[1768780422578,61.08261521,138.47,138.38,132.23920295]
[1768780423497,61.08261521,138.43,138.36,6.5068]
[1768780423791,61.08261521,138.43,138.33,101.242]
[1768780423990,61.08261521,138.43,138.35,101.2276]
[1768780424189,271.44723247,138.44,138.37,101.211]
[1768780424390,271.4,138.44,138.37,101.211]
[1768780424588,271.4,138.44,138.36,143.51600295]
[1768780424989,271.42,138.48,138.38,101.205]
[1768780425195,271.42,138.48,138.41,6.5044]
[1768780425694,271.42,138.48,138.38,101.205]
[1768780425885,0.053912,138.46,138.39,6.5054]
[1768780426488,0.053912,138.46,138.36,143.51600295]
[1768780426489,61.13652721,138.46,138.37,6.5064]
[1768780426991,61.08261521,138.46,138.37,6.5064]
[1768780427300,61.08261521,138.46,138.38,101.2044]
[1768780427495,61.08261521,138.46,138.37,143.50760295]
[1768780427496,0.04956822,138.43,138.37,143.50760295]
[1768780428697,0.04956822,138.43,138.38,6.5058]
[1768780428997,0.04956822,138.43,138.34,143.52940295]
[1768780429596,61.08261521,138.46,138.34,143.52940295]
[1768780429799,61.08261521,138.46,138.36,6.5067]
[1768780430098,0.04583623,138.4,138.36,6.5067]
[1768780432691,0.04583623,138.4,138.37,6.5063]
[1768780432897,61.08261521,138.44,138.37,6.5063]
[1768780433197,61.08261521,138.44,138.38,6.5058]
[1768780433386,61.08261521,138.44,138.32,101.2476]
[1768780433592,65.6029328,138.41,138.29,101.2688]
[1768780433991,65.6029328,138.41,138.31,101.2569]
[1768780434386,65.6029328,138.38,138.28,101.2779]
[1768780434584,65.6029328,138.37,138.26,20.53411506]
[1768780434794,65.6029328,138.37,138.28,101.2732]
[1768780434991,65.6029328,138.37,138.3,6.5095]
[1768780436190,65.6029328,138.4,138.31,6.5089]
[1768780436398,65.6029328,138.4,138.31,55.31350532]
[1768780436904,65.6029328,138.4,138.31,6.5089]
[1768780437092,65.6029328,138.4,138.29,48.80460532]
[1768780437399,65.6029328,138.4,138.29,150.07220532]
[1768780437601,72.1083328,138.4,138.29,55.31480532]
[1768780438096,72.1083328,138.4,138.3,6.5095]
[1768780438397,65.6029328,138.4,138.3,48.80460532]
[1768780439693,65.6029328,138.4,138.32,6.5086]
[1768780439900,282.75066806,138.42,138.32,55.31320532]
[1768780440199,348.35360086,138.42,138.32,55.31320532]
[1768780440496,65.6029328,138.41,138.3,6.5096]
[1768780440799,65.6029328,138.35,138.26,20.53411506]
[1768780441199,65.6029328,138.35,138.27,6.511]
[1768780441401,0.04620149,138.32,138.29,0.05094629]
[1768780441800,0.04620149,138.32,138.26,20.53411506]
[1768780443091,65.64913429,138.32,138.26,20.53411506]
[1768780443294,70.41550235,138.32,138.23,101.3139]
[1768780443495,65.64913429,138.32,138.23,62.66798447]
[1768780443901,65.6029328,138.32,138.24,6.5124]
[1768780444401,0.0462624,138.29,138.24,6.5124]
[1768780445096,0.0462624,138.29,138.22,6.5134]
[1768780445397,0.0462624,138.29,138.22,163.98938447]
[1768780445700,0.0462624,138.29,138.23,62.66798447]
[1768780446000,65.6029328,138.32,138.24,6.5123]
[1768780446398,65.6029328,138.32,138.23,163.98038447]
[1768780446902,337.1629328,138.35,138.25,163.96498447]
[1768780447097,337.1629328,138.35,138.26,163.95598447]
[1768780447497,65.6029328,138.38,138.29,6.51]
[1768780447703,65.6029328,138.37,138.27,62.66798447]
[1768780448204,65.6029328,138.37,138.29,6.51]
[1768780448400,65.6029328,138.37,138.27,163.95078447]
[1768780448601,65.6029328,138.37,138.28,163.94608447]
[1768780449704,65.6029328,138.37,138.29,101.2716]
[1768780450301,0.05562084,138.34,138.29,101.2716]
[1768780450505,65.6029328,138.37,138.29,163.93958447]
[1768780450707,65.6029328,138.37,138.32,0.05550997]
[1768780451107,271.66,138.39,138.32,0.05550997]
[1768780451699,271.66,138.39,138.32,6.56420997]
[1768780452104,101.1434,138.47,138.35,6.5072]
[1768780452311,65.6029328,138.41,138.32,0.05550997]
[1768780452714,337.2629328,138.4,138.29,163.93958447]
[1768780453101,0.05328382,138.38,138.29,163.93958447]
[1768780453511,65.6029328,138.44,138.33,62.66798447]
[1768780453811,4.76636806,138.45,138.29,163.93958447]
[1768780453812,70.36930086,138.42,138.29,163.93958447]
[1768780454109,65.6029328,138.4,138.32,6.5086]
[1768780454412,65.6029328,138.38,138.27,163.95198447]
[1768780454805,65.6029328,138.38,138.29,101.2712]
[1768780455007,65.6029328,138.37,138.31,0.05114766]
[1768780456212,65.6029328,138.41,138.31,62.71913213]
[1768780456515,342.43598346,138.4,138.31,62.71913213]
[1768780456702,337.2629328,138.4,138.31,62.66798447]
[1768780456904,337.2629328,138.4,138.32,6.5086]
[1768780457102,337.2629328,138.4,138.34,0.04732153]
[1768780457810,337.2629328,138.4,138.31,62.66798447]
[1768780457811,65.6029328,138.38,138.26,101.2938]
[1768780458014,70.36930086,138.37,138.26,163.96178447]
[1768780458514,76.87600086,138.37,138.26,62.66798447]
[1768780458910,65.6029328,138.35,138.26,69.17938447]
[1768780459214,65.6029328,138.35,138.26,62.66798447]
[1768780459810,65.6029328,138.35,138.27,6.5109]
[1768780460016,271.66,138.39,138.27,62.66798447]
[1768780460215,70.77970661,138.38,138.27,62.66798447]
[1768780460410,65.6029328,138.38,138.27,62.66798447]
[1768780460718,65.6029328,138.36,138.27,62.66798447]
[1768780460920,65.6029328,138.36,138.29,6.5101]
[1768780462618,61.85831889,138.36,138.24,167.21789909]
[1768780463820,68.36561889,138.36,138.25,6.512]
[1768780464620,61.85831889,138.36,138.26,101.2934]
[1768780464816,61.85831889,138.39,138.28,167.19119909]
[1768780465122,61.85831889,138.38,138.28,167.19119909]
[1768780465425,61.85831889,138.38,138.29,6.51]
[1768780466417,61.85831889,138.38,138.28,65.91509909]
[1768780466418,61.85831889,138.38,138.3,6.5096]
[1768780466824,61.85831889,138.34,138.32,0.05245253]
[1768780467022,61.85831889,138.34,138.24,65.91509909]
[1768780467427,61.85831889,138.34,138.27,6.511]
[1768780467620,66.64257307,138.37,138.27,167.19719909]
[1768780467927,61.85831889,138.37,138.27,167.19719909]
[1768780468226,61.85831889,138.37,138.27,72.42619909]
[1768780468523,0.05421218,138.33,138.27,65.91509909]
[1768780469916,0.05421218,138.33,138.28,6.5105]
[1768780470525,0.05421218,138.33,138.28,72.42559909]
[1768780470921,61.85831889,138.37,138.28,72.42559909]
[1768780471118,61.85831889,138.37,138.29,65.91509909]
[1768780471533,68.36371889,138.4,138.3,65.91509909]
[1768780471820,61.85831889,138.38,138.29,6.5101]
[1768780472023,61.85831889,138.38,138.23,101.3134]
[1768780472024,66.64257307,138.38,138.26,65.91509909]
[1768780472220,5.18502751,138.37,138.26,65.91509909]
[1768780472424,61.85831889,138.37,138.28,72.42559909]
[1768780473027,61.85831889,138.4,138.29,65.91509909]
[1768780473831,61.85831889,138.4,138.31,6.5091]
[1768780474732,68.36361889,138.4,138.31,6.5091]
[1768780475431,61.85831889,138.38,138.29,72.42539909]
[1768780477227,61.85831889,138.38,138.3,6.5095]
[1768780477526,68.36481889,138.38,138.29,65.91509909]
[1768780477727,61.85831889,138.38,138.29,65.91509909]
[1768780477919,66.8120368,138.41,138.3,66.92300257]
[1768780478120,72.00698481,138.4,138.3,66.92300257]
[1768780478435,72.00698481,138.39,138.3,66.92300257]
[1768780478634,66.8120368,138.39,138.3,66.92300257]
[1768780479328,66.8120368,138.42,138.3,66.92300257]
[1768780479529,72.009261,138.41,138.3,66.92300257]
[1768780479722,11.7024242,138.4,138.32,6.5087]
[1768780479919,5.1972242,138.39,138.32,6.5087]
[1768780480128,66.8120368,138.41,138.32,6.5087]
[1768780480430,5.20319496,138.4,138.32,6.5087]
[1768780480630,5.20319496,138.39,138.32,6.5087]
[1768780480819,66.8120368,138.41,138.32,6.5087]
[1768780481018,5.20683099,138.4,138.32,6.5087]
[1768780481332,5.20683099,138.39,138.33,6.5082]
[1768780481629,66.8120368,138.41,138.33,6.5082]
[1768780481835,72.01888283,138.4,138.26,66.92300257]
[1768780482036,66.8120368,138.38,138.29,66.92300257]
[1768780482428,66.8120368,138.38,138.31,6.5091]
[1768780482624,66.8120368,138.38,138.29,66.92300257]
[1768780482820,66.8120368,138.38,138.3,6.5096]
[1768780483220,6.5054,138.4,138.3,66.92300257]
[1768780483434,5.21641787,138.39,138.3,66.92300257]
[1768780483633,6.5054,138.4,138.3,66.92300257]
[1768780483933,5.21865906,138.39,138.31,73.43200257]
[1768780484123,66.8120368,138.4,138.31,73.43200257]
[1768780484327,72.03766602,138.39,138.31,73.43200257]
[1768780484529,5.22562922,138.38,138.31,73.43200257]
[1768780486238,271.68,138.41,138.32,66.92300257]
[1768780486430,5.2400282,138.4,138.32,66.92300257]
[1768780486632,6.37243165,138.44,138.34,66.92300257]
[1768780486832,73.18446845,138.44,138.34,66.92300257]
[1768780487232,66.8120368,138.44,138.34,66.92300257]
[1768780487434,79.68796845,138.44,138.34,66.92300257]
[1768780487728,66.8120368,138.42,138.31,66.92300257]
[1768780487935,66.8120368,138.42,138.33,73.43120257]
[1768780489036,66.8120368,138.42,138.34,73.43070257]
[1768780489628,66.8120368,138.42,138.35,73.43030257]
[1768780489827,66.8120368,138.45,138.36,66.92300257]
[1768780490027,66.8120368,138.45,138.33,168.16250257]
[1768780490233,66.8120368,138.45,138.33,66.92300257]
[1768780490839,73.18446845,138.45,138.33,66.92300257]
[1768780491150,0.04874714,138.4,138.33,66.92300257]
[1768780491746,0.04874714,138.4,138.34,6.5077]
[1768780492048,0.04874714,138.4,138.33,66.92300257]
[1768780492446,0.04874714,138.4,138.33,73.43120257]
[1768780494253,0.04874714,138.4,138.34,6.5077]
[1768780495251,0.04874714,138.4,138.34,70.06878509]
[1768780496054,0.04874714,138.4,138.34,63.56108509]
[1768780498554,5.22183699,138.39,138.34,63.56108509]
[1768780498756,0.04874714,138.4,138.34,63.56108509]
[1768780499056,5.22177136,138.39,138.34,63.56108509]
[1768780499253,0.04874714,138.4,138.34,63.56108509]
[1768780499552,5.22211273,138.39,138.34,63.56108509]
[1768780499756,0.04874714,138.4,138.34,63.56108509]
[1768780499955,5.2219832,138.39,138.34,63.56108509]
[1768780500255,0.04874714,138.4,138.34,63.56108509]
[1768780500454,5.22218185,138.39,138.34,63.56108509]
[1768780500754,0.04874714,138.4,138.31,70.07008509]
[1768780500952,5.22460712,138.39,138.31,70.07008509]
[1768780501154,0.04874714,138.4,138.31,70.07008509]
[1768780501352,5.22481639,138.39,138.32,6.5087]
[1768780501656,0.05063513,138.37,138.32,63.56108509]
[1768780501856,6.37243165,138.43,138.34,70.12200508]
[1768780502056,5.22465212,138.42,138.34,63.61440508]
[1768780502253,5.22465212,138.41,138.34,63.61440508]
[1768780502455,61.73065535,138.44,138.36,63.56108509]
[1768780502656,5.2247549,138.43,138.36,63.56108509]
[1768780502853,6.37243165,138.49,138.4,63.56108509]
[1768780503056,61.73065535,138.5,138.41,164.74128509]
[1768780503263,68.103087,138.53,138.44,63.56108509]
[1768780503459,61.73065535,138.53,138.44,63.56108509]
[1768780504159,61.73065535,138.51,138.4,63.56108509]
[1768780505559,61.73065535,138.47,138.37,70.06758509]
[1768780505752,61.73065535,138.47,138.35,472.6087]
[1768780505753,61.73065535,138.46,138.35,63.56108509]
[1768780505957,61.73065535,138.46,138.36,63.56108509]
[1768780506157,11.28575418,138.48,138.38,63.56108509]
[1768780506561,73.01640953,138.48,138.38,63.56108509]
[1768780506862,61.73065535,138.46,138.36,70.06798509]
[1768780507256,61.73065535,138.46,138.37,70.06728509]
[1768780507462,61.73065535,138.49,138.38,63.56108509]
[1768780507964,68.23185535,138.49,138.39,6.5053]
[1768780508765,68.23185535,138.49,138.37,101.2091]
[1768780508766,61.73065535,138.47,138.37,6.5063]
[1768780509166,61.73065535,138.47,138.37,70.06738509]
[1768780509462,61.73065535,138.46,138.35,6.5072]
[1768780509670,61.73065535,138.45,138.35,6.5072]
[1768780510466,61.73065535,138.43,138.34,63.56108509]
[1768780510972,68.23605535,138.4,138.3,70.07068509]
[1768780511471,68.23605535,138.4,138.31,6.5091]
[1768780511671,68.23605535,138.4,138.31,70.07018509]
[1768780512663,6.5043,138.42,138.32,63.56108509]
[1768780512866,61.73065535,138.41,138.29,63.56108509]
[1768780513056,162.91785535,138.41,138.29,63.56108509]
[1768780513262,6.5059,138.39,138.3,6.5096]
[1768780513466,61.73065535,138.4,138.3,70.07068509]
[1768780513862,68.23595535,138.4,138.3,70.07068509]
[1768780514369,68.23615535,138.4,138.31,63.56108509]
[1768780514562,61.73065535,138.43,138.32,63.56108509]
[1768780514964,6.5049,138.41,138.32,63.56108509]
[1768780515365,61.73065535,138.41,138.28,63.56108509]
[1768780515663,68.23745535,138.37,138.28,63.56108509]
[1768780515969,61.73065535,138.37,138.28,63.56108509]
[1768780516862,6.5072,138.36,138.28,63.56108509]